fUST/lending_fUST_20250817
["ID","MTS","AMOUNT","RATE_DAILY","PERIOD"]
[379782267,1755407446598,-770.43,0.00020828,2]
[379782269,1755407446608,-825.68,0.00020828,2]
[379782271,1755407446617,-151.0,0.0002083,2]
[379782273,1755407446627,-315.27,0.00020837,2]
[379782275,1755407446637,-244.3,0.00020867,3]
[379782277,1755407446646,-151.0,0.00020869,2]
[379782278,1755407446656,-194.0916,0.00020869,20]
[379782280,1755407446666,-151.0,0.00020869,2]
[379782283,1755407446677,-151.0,0.00020869,2]
[379782284,1755407446686,-151.0,0.00020869,2]
[379782286,1755407446696,-151.0,0.00020873,2]
[379782289,1755407446706,-151.0,0.00020873,2]
[379782290,1755407446716,-151.0,0.00020873,2]
[379782292,1755407446725,-151.0,0.00020873,2]
[379782295,1755407446735,-151.0,0.00020873,2]
[379782296,1755407446744,-151.0,0.00020873,2]
[379782299,1755407446755,-151.0,0.00020873,2]
[379782300,1755407446765,-151.0,0.0002089,2]
[379782303,1755407446774,-190.087477,0.0002089,2]
[379782305,1755407446783,-190.087477,0.0002089,2]
[379782306,1755407446793,-167.455912,0.0002089,2]
[379782309,1755407446803,-174.50501639,0.0002089,2]
[379782311,1755407446813,-151.0,0.0002089,2]
[379782313,1755407446822,-245.990766,0.0002089,2]
[379782315,1755407446834,-1000.0,0.000209,2]
[379782317,1755407446845,-151.0,0.000209,3]
[379782319,1755407446860,-150.73190896,0.00020904,3]
[379782321,1755407446878,-979.667,0.00020907,2]
[379782323,1755407446887,-641.266,0.00020908,2]
[379782325,1755407446896,-2153.0,0.00020908,2]
[379782327,1755407446905,-534.343,0.00020911,2]
[379782329,1755407446915,-422.367,0.00020911,2]
[379782331,1755407446924,-168.0,0.00020915,2]
[379782333,1755407446935,-156.37978624,0.00020932,2]
[379782335,1755407446944,-551.0,0.00020948,2]
[379782337,1755407446954,-293.7943279,0.00020959,2]
[379782339,1755407446963,-500.0,0.00020973,2]
[379782341,1755407446972,-500.0,0.00020973,2]
[379782343,1755407446981,-500.0,0.00020973,2]
[379782345,1755407446990,-500.0,0.00020973,2]
[379782347,1755407446999,-502.22440403,0.00020973,2]
[379782349,1755407447008,-500.0,0.00020973,2]
[379782351,1755407447017,-500.0,0.00020973,2]
[379782353,1755407447027,-500.0,0.00020973,2]
[379782355,1755407447036,-500.0,0.00020973,2]
[379782357,1755407447045,-500.0,0.00020973,2]
[379782359,1755407447054,-500.0,0.00020973,2]
[379782361,1755407447063,-500.0,0.00020973,2]
[379782363,1755407447072,-500.0,0.00020973,2]
[379782365,1755407447081,-500.0,0.00020973,2]
[379782367,1755407447090,-500.0,0.00020973,2]
[379782369,1755407447099,-500.6005255,0.00020973,2]
[379782370,1755407447108,-500.0,0.00020973,2]
[379782373,1755407447118,-501.31201359,0.00020973,2]
[379782374,1755407447127,-500.42212768,0.00020973,2]
[379782376,1755407447136,-500.48515569,0.00020973,2]
[379782378,1755407447145,-502.45168872,0.00020973,2]
[379782380,1755407447155,-506.92517168,0.00020973,2]
[379782382,1755407447164,-500.0,0.00020973,2]
[379782384,1755407447173,-209.45680146,0.00020973,2]
[379782386,1755407447182,-500.0,0.00020973,2]
[379782388,1755407447192,-500.0,0.00020973,2]
[379782390,1755407447201,-394.04902133,0.00020973,2]
[379782392,1755407447210,-500.0,0.00020973,2]
[379782394,1755407447220,-500.99918292,0.00020973,2]
[379782396,1755407447229,-500.0,0.00020973,2]
[379782398,1755407447238,-500.0,0.00020973,2]
[379782400,1755407447248,-500.0,0.00020973,2]
[379782402,1755407447257,-500.0,0.00020973,2]
[379782404,1755407447266,-500.0,0.00020973,2]
[379782406,1755407447276,-155.70427704,0.00020973,2]
[379782408,1755407447285,-500.0,0.00020973,2]
[379782410,1755407447294,-500.0,0.00020973,2]
[379782412,1755407447303,-503.19760931,0.00020973,2]
[379782414,1755407447312,-500.0,0.00020973,2]
[379782416,1755407447321,-503.84495394,0.00020973,2]
[379782418,1755407447330,-500.0,0.00020973,2]
[379782420,1755407447340,-501.17788636,0.00020973,2]
[379782422,1755407447350,-500.0,0.00020973,2]
[379782424,1755407447359,-500.0,0.00020973,2]
[379782426,1755407447368,-502.4133928,0.00020973,2]
[379782428,1755407447377,-215.432536,0.00020973,2]
[379782430,1755407447387,-151.0,0.00020973,2]
[379782432,1755407447396,-151.0,0.00020973,2]
[379782434,1755407447405,-151.0,0.00020973,2]
[379782436,1755407447415,-204.120948,0.00020973,2]
[379782438,1755407447424,-151.0,0.00020973,2]
[379782440,1755407447433,-151.0,0.00020973,2]
[379782442,1755407447443,-150.0,0.00020976,2]
[379782444,1755407447452,-150.0,0.00020976,2]
[379782446,1755407447461,-150.101,0.00020976,2]
[379782448,1755407447478,-150.155,0.00020976,2]
[379782450,1755407447487,-150.0,0.00020976,2]
[379782452,1755407447496,-176.916,0.00020976,2]
[379782454,1755407447505,-293.7943279,0.00020986,2]
[379782456,1755407447515,-293.7943279,0.00020986,2]
[379782458,1755407447524,-300.80260306,0.00020989,2]
[379782460,1755407447540,-100000.0,0.0002099,2]
[379782462,1755407447550,-8752.15889482,0.0002099,2]
[379782478,1755407447702,-313.317136,0.00020168,2]
[379782479,1755407447819,-146.682864,0.00020168,2]
[379782480,1755407447829,-198.69854472,0.00020734,2]
[379782481,1755407447839,-521.47253458,0.0002099,2]
[379784936,1755407478255,151.62,0.00019886,2]
[379787401,1755407511982,1226.56759305,0.000199,2]
[379787414,1755407561732,150.0,0.00019889,2]
[379787429,1755407651661,150.0,0.00019886,2]
[379787432,1755407680745,180.24885308,0.00017535,2]
[379787434,1755407708199,566.0,0.0002,60]
[379787435,1755407732172,150.0,0.00019878,2]
[379787438,1755407813112,150.0,0.00019886,2]
[379787443,1755407895415,150.0,0.00019878,2]
[379787446,1755407906977,302.57643837,0.00019779,2]
[379787447,1755407907003,152.38758309,0.00019976,4]
[379787448,1755407921511,666.0,0.000193,2]
[379787449,1755407975029,150.0,0.00019887,2]
[379787458,1755408054632,161.893108,0.00013699,2]
[379787459,1755408054870,150.0,0.00019887,2]
[379787462,1755408135290,150.0,0.0001988,2]
[379787464,1755408203490,157.503222,0.00019863,2]
[379787470,1755408218034,150.0,0.00019888,2]
[379787484,1755408313462,150.0,0.00019887,2]
[379787489,1755408394377,150.0,0.00019887,2]
[379787501,1755408475477,150.0,0.00019879,2]
[379787509,1755408556913,150.0,0.0001988,2]
[379787570,1755408632258,-500.0,0.00020018,2]
[379787571,1755408632269,-500.0,0.00020018,2]
[379787572,1755408632279,-250.0,0.00020039,2]
[379787573,1755408632289,-79.72529617,0.00020166,2]
[379787584,1755408638137,150.0,0.0001988,2]
[379787589,1755408638294,-1120.27470383,0.00020166,2]
[379787590,1755408638304,-359.03183746,0.00020167,2]
[379788063,1755408643659,-338.96816254,0.00020167,2]
[379788065,1755408643668,-300.0,0.00020167,2]
[379788067,1755408643678,-260.0,0.00020167,2]
[379788069,1755408643688,-480.0,0.00020168,2]
[379788071,1755408643698,-480.0,0.00020168,2]
[379788073,1755408643707,-480.0,0.00020168,2]
[379788075,1755408643717,-480.0,0.00020168,2]
[379788077,1755408643728,-480.0,0.00020168,2]
[379788078,1755408643738,-480.0,0.00020168,2]
[379788080,1755408643748,-480.0,0.00020168,2]
[379788082,1755408643757,-480.0,0.00020168,2]
[379788084,1755408643767,-3588.62,0.00020168,2]
[379788086,1755408643777,-480.0,0.00020178,2]
[379788088,1755408643786,-577.5,0.00020178,2]
[379788090,1755408643795,-1044.72,0.00020178,2]
[379788092,1755408643806,-1767.78,0.00020178,2]
[379788094,1755408643815,-615.01,0.00020178,2]
[379788096,1755408643825,-480.0,0.00020178,2]
[379788098,1755408643835,-903.68,0.00020178,2]
[379788100,1755408643844,-480.0,0.00020178,2]
[379788102,1755408643853,-480.0,0.00020178,2]
[379788104,1755408643863,-1552.22,0.00020178,2]
[379788106,1755408643872,-916.23,0.00020178,2]
[379788108,1755408643882,-480.0,0.00020178,2]
[379788110,1755408643891,-480.0,0.00020179,2]
[379788112,1755408643901,-480.0,0.00020179,2]
[379788114,1755408643910,-480.0,0.00020179,2]
[379788116,1755408643919,-290.63492802,0.00020179,2]
[379788118,1755408643928,-480.0,0.00020179,2]
[379788119,1755408643937,-519.46,0.00020179,2]
[379788121,1755408643946,-480.0,0.00020179,2]
[379788123,1755408643955,-480.0,0.00020179,2]
[379788125,1755408643965,-686.24,0.00020179,2]
[379788127,1755408643974,-3199.71,0.00020179,2]
[379788129,1755408643984,-480.0,0.00020179,2]
[379788131,1755408643993,-480.0,0.00020179,2]
[379788133,1755408644003,-1166.01,0.00020179,2]
[379788135,1755408644012,-742.1,0.00020179,2]
[379788137,1755408644022,-480.0,0.00020179,2]
[379788139,1755408644031,-169.1819103,0.00020179,2]
[379788141,1755408644041,-480.0,0.00020179,2]
[379788143,1755408644050,-480.0,0.00020179,2]
[379788144,1755408644059,-480.0,0.00020179,2]
[379788146,1755408644068,-480.0,0.00020179,2]
[379788148,1755408644077,-480.0,0.00020179,2]
[379788150,1755408644086,-480.0,0.00020179,2]
[379788152,1755408644095,-480.0,0.00020179,2]
[379788154,1755408644105,-480.0,0.00020179,2]
[379788156,1755408644114,-480.0,0.00020179,2]
[379788158,1755408644123,-480.0,0.00020179,2]
[379788160,1755408644132,-480.0,0.0002018,2]
[379788162,1755408644144,-480.0,0.0002018,2]
[379788164,1755408644154,-480.0,0.0002018,2]
[379788165,1755408644163,-674.13,0.0002018,2]
[379788167,1755408644173,-480.0,0.0002018,2]
[379788169,1755408644182,-480.0,0.0002018,2]
[379788171,1755408644191,-722.47,0.0002018,2]
[379788173,1755408644200,-480.0,0.0002018,2]
[379788175,1755408644210,-480.0,0.00020442,2]
[379788177,1755408644219,-480.0,0.00020442,2]
[379788179,1755408644230,-480.0,0.00020442,2]
[379788181,1755408644240,-480.0,0.00020442,2]
[379788183,1755408644249,-480.0,0.00020442,2]
[379788185,1755408644259,-480.0,0.00020442,2]
[379788186,1755408644268,-480.0,0.00020442,2]
[379788188,1755408644278,-383.5364218,0.00020442,2]
[379788190,1755408644288,-3588.62,0.00020442,2]
[379788192,1755408644297,-480.0,0.00020452,2]
[379788194,1755408644307,-577.5,0.00020452,2]
[379788196,1755408644317,-1044.72,0.00020452,2]
[379788198,1755408644326,-1767.78,0.00020452,2]
[379788200,1755408644335,-615.01,0.00020452,2]
[379788202,1755408644344,-480.0,0.00020452,2]
[379788204,1755408644354,-903.68,0.00020452,2]
[379788206,1755408644363,-451.95255962,0.00020452,2]
[379788208,1755408644372,-480.0,0.00020452,2]
[379788210,1755408644382,-1552.22,0.00020452,2]
[379788211,1755408644391,-916.23,0.00020452,2]
[379788213,1755408644400,-480.0,0.00020452,2]
[379788215,1755408644410,-480.0,0.00020453,2]
[379788217,1755408644421,-519.46,0.00020453,2]
[379788219,1755408644430,-480.0,0.00020453,2]
[379788221,1755408644440,-480.0,0.00020453,2]
[379788223,1755408644450,-686.24,0.00020453,2]
[379788225,1755408644460,-3199.71,0.00020453,2]
[379788227,1755408644469,-480.0,0.00020453,2]
[379788229,1755408644478,-480.0,0.00020453,2]
[379788231,1755408644487,-742.1,0.00020453,2]
[379788233,1755408644497,-1166.01,0.00020453,2]
[379788235,1755408644506,-480.0,0.00020453,2]
[379788237,1755408644516,-480.0,0.00020453,2]
[379788239,1755408644526,-480.0,0.00020453,2]
[379788241,1755408644535,-480.0,0.00020453,2]
[379788243,1755408644544,-480.0,0.00020453,2]
[379788245,1755408644553,-480.0,0.00020453,2]
[379788247,1755408644562,-480.0,0.00020453,2]
[379788248,1755408644572,-480.0,0.00020454,2]
[379788250,1755408644581,-480.0,0.00020454,2]
[379788252,1755408644591,-400.07705453,0.00020454,2]
[379788254,1755408644600,-674.13,0.00020454,2]
[379788256,1755408644610,-480.0,0.00020454,2]
[379788258,1755408644619,-480.0,0.00020454,2]
[379788260,1755408644629,-722.47,0.00020454,2]
[379788262,1755408644638,-5000.0,0.00020483,2]
[379788264,1755408644649,-6842.37516677,0.00020488,2]
[379788266,1755408644659,-250.0,0.00020488,2]
[379788268,1755408644668,-18696.36,0.000205,2]
[379788270,1755408644677,-183.2,0.0002051,2]
[379788272,1755408644686,-151.0,0.00020554,2]
[379788274,1755408644696,-157.221931,0.00020554,2]
[379788276,1755408644705,-183.575498,0.00020554,2]
[379788277,1755408644714,-183.575498,0.00020554,2]
[379788279,1755408644723,-160.0,0.00020561,2]
[379788288,1755408644877,-160.0,0.00020561,2]
[379788289,1755408644886,-843.71309931,0.00020561,2]
[379788290,1755408644894,-160.0,0.00020561,2]
[379788291,1755408644902,-7198.31045615,0.00020561,2]
[379788292,1755408644914,-5002.4541052,0.00020561,2]
[379788293,1755408644926,-360.40286645,0.00020561,2]
[379788379,1755408646039,-480.0,0.00020178,2]
[379788381,1755408646049,-161.00223132,0.00020452,2]
[379788383,1755408646060,-22.38601755,0.00020452,2]
[379788385,1755408646070,-121.29704355,0.00020561,2]
[379788387,1755408646080,-462.21132165,0.00020561,2]
[379788389,1755408646090,-417.15472785,0.00020561,2]
[379788391,1755408646099,-232.1512529,0.00020561,2]
[379788393,1755408646109,-215.71995163,0.00020561,2]
[379788395,1755408646119,-200.0,0.00020583,20]
[379788397,1755408646128,-200.0,0.00020583,20]
[379788399,1755408646138,-200.0,0.00020583,20]
[379788401,1755408646148,-200.0,0.00020583,20]
[379788403,1755408646157,-200.0,0.00020583,20]
[379788405,1755408646167,-200.0,0.00020583,20]
[379788407,1755408646177,-200.0,0.00020583,20]
[379788409,1755408646187,-200.0,0.00020583,20]
[379788411,1755408646196,-200.0,0.00020583,20]
[379788413,1755408646205,-200.0,0.00020583,20]
[379788415,1755408646215,-157.221931,0.00020599,2]
[379788417,1755408646224,-293.7943279,0.000206,2]
[379788419,1755408646234,-185.11697839,0.00020627,2]
[379788421,1755408646243,-183.2,0.00020632,2]
[379788423,1755408646253,-153.0,0.00020685,2]
[379788425,1755408646263,-43.64644757,0.00020695,2]
[379788427,1755408646274,-141.47053082,0.00020695,2]
[379788429,1755408646283,-151.0,0.000207,2]
[379788431,1755408646293,-183.575498,0.000207,2]
[379788433,1755408646302,-183.575498,0.000207,2]
[379788435,1755408646311,-160.7608968,0.000207,2]
[379788437,1755408646325,-153.0,0.000207,2]
[379788439,1755408646335,-152.920654,0.00020702,2]
[379788441,1755408646344,-480.0,0.00020716,2]
[379788443,1755408646354,-480.0,0.00020716,2]
[379788445,1755408646363,-480.0,0.00020716,2]
[379788447,1755408646373,-480.0,0.00020716,2]
[379788449,1755408646383,-480.0,0.00020716,2]
[379788451,1755408646392,-480.0,0.00020716,2]
[379788453,1755408646402,-480.0,0.00020716,2]
[379788455,1755408646412,-1422.69692238,0.00020716,2]
[379788597,1755408647903,-2165.92307762,0.00020716,2]
[379788599,1755408647912,-460.33,0.00020717,3]
[379788601,1755408647921,-230.17,0.00020717,3]
[379788603,1755408647931,-690.51,0.00020717,3]
[379788605,1755408647940,-480.0,0.00020726,2]
[379788607,1755408647950,-577.5,0.00020726,2]
[379788609,1755408647959,-1044.72,0.00020726,2]
[379788611,1755408647969,-1440.58295338,0.00020726,2]
[379788987,1755408651580,2229.19473651,0.000199,2]
[379793064,1755408710652,384.10845246,0.000199,2]
[379793065,1755408711048,302.69733596,0.00019801,2]
[379793069,1755408717116,150.0,0.0001988,2]
[379793070,1755408718746,5000.0,0.00019178,2]
[379793071,1755408718887,511.55483492,0.00019178,2]
[379793072,1755408776952,447.03236558,0.00018538,2]
[379793073,1755408800855,150.0,0.00019879,2]
[379793074,1755408870077,234.08942046,0.000189,2]
[379793075,1755408883700,150.0,0.00019888,2]
[379793077,1755408965712,150.0,0.00019879,2]
[379793080,1755409053906,150.0,0.00019921,2]
[379793081,1755409138975,150.0,0.00019935,2]
[379793083,1755409171202,156.05961364,0.000189,2]
[379793085,1755409213728,104.58673041,0.00019863,2]
[379793086,1755409213749,87.48505959,0.00019863,2]
[379793087,1755409218920,150.0,0.00019915,2]
[379793090,1755409298588,150.0,0.00019889,2]
[379793093,1755409386859,150.0,0.0001989,2]
[379793095,1755409422644,161.893108,0.00013699,2]
[379793096,1755409465400,150.0,0.00019889,2]
[379793097,1755409472507,150.0,0.000189,2]
[379793098,1755409480500,180.23870659,0.00017535,2]
[379793101,1755409544320,150.0,0.00019982,2]
[379793102,1755409631652,150.0,0.0001988,2]
[379793106,1755409711109,150.0,0.00019889,2]
[379793113,1755409773978,150.0,0.000189,2]
[379793114,1755409791889,150.0,0.00019888,2]
[379793131,1755409833093,-1200.0,0.00020175,2]
[379793133,1755409833103,-300.0,0.00020175,2]
[379793134,1755409833112,-300.0,0.00020175,2]
[379793135,1755409833122,-1200.0,0.00020175,2]
[379793136,1755409833131,-734.89,0.00020176,2]
[379793137,1755409833140,-505.31,0.00020176,2]
[379793138,1755409833150,-914.13,0.00020176,2]
[379793139,1755409833160,-563.76,0.00020176,2]
[379793140,1755409833169,-480.0,0.00020176,2]
[379793141,1755409833178,-480.0,0.00020176,2]
[379793142,1755409833187,-906.3,0.00020176,2]
[379793143,1755409833197,-480.0,0.00020177,2]
[379793144,1755409833206,-480.0,0.00020177,2]
[379793145,1755409833215,-480.0,0.00020177,2]
[379793146,1755409833224,-480.0,0.00020177,2]
[379793147,1755409833234,-480.0,0.00020177,2]
[379793148,1755409833243,-480.0,0.00020177,2]
[379793150,1755409833252,-480.0,0.00020177,2]
[379793151,1755409833262,-480.0,0.00020177,2]
[379793152,1755409833271,-480.0,0.00020177,2]
[379793153,1755409833281,-480.0,0.00020177,2]
[379793154,1755409833290,-480.0,0.00020177,2]
[379793155,1755409833299,-211.97431641,0.00020177,2]
[379793156,1755409833315,-102.76125154,0.00020177,2]
[379793157,1755409833325,-792.96,0.00020177,2]
[379793158,1755409833337,-480.0,0.00020177,2]
[379793159,1755409833346,-480.0,0.00020177,2]
[379793160,1755409833356,-480.0,0.00020177,2]
[379793161,1755409833366,-480.0,0.00020177,2]
[379793162,1755409833378,-480.0,0.00020177,2]
[379793163,1755409833389,-680.26,0.00020177,2]
[379793164,1755409833399,-480.0,0.00020177,2]
[379793165,1755409833409,-1068.84,0.00020177,2]
[379793166,1755409833418,-480.0,0.00020177,2]
[379793167,1755409833428,-480.0,0.00020177,2]
[379793168,1755409833437,-480.0,0.00020177,2]
[379793169,1755409833447,-480.0,0.00020177,2]
[379793170,1755409833457,-480.0,0.00020177,2]
[379793171,1755409833466,-480.0,0.00020177,2]
[379793172,1755409833475,-415.92384454,0.00020177,2]
[379793173,1755409833487,-1006.94615546,0.00020177,2]
[379793174,1755409833497,-2952.24,0.00020177,2]
[379793175,1755409833507,-1560.44,0.00020178,2]
[379793176,1755409833516,-2918.11179458,0.00020178,2]
[379793259,1755409838530,-480.0,0.00020176,2]
[379793261,1755409838542,-480.0,0.00020177,2]
[379793263,1755409838551,-270.11820542,0.00020178,2]
[379793265,1755409838561,-480.0,0.00020178,2]
[379793266,1755409838571,-617.95,0.00020179,2]
[379793267,1755409838580,-480.0,0.00020179,2]
[379793268,1755409838589,-164.02064667,0.00020179,2]
[379793269,1755409838599,-662.26,0.00020179,2]
[379793270,1755409838608,-3050.46689496,0.000203,3]
[379793272,1755409838619,-3776.45027885,0.000203,3]
[379793273,1755409838634,-461.3250708,0.000203,3]
[379793608,1755409843834,-480.0,0.00020177,2]
[379793610,1755409843844,-420.77885228,0.000203,3]
[379793612,1755409843855,-2445.131478,0.000203,3]
[379794604,1755409872521,150.0,0.00019889,2]
[379794605,1755409954787,150.0,0.00019878,2]
[379794607,1755410033943,150.0,0.00019887,2]
[379794608,1755410113958,150.0,0.0001989,2]
[379794609,1755410190197,281.1704856,0.00019238,2]
[379794610,1755410192034,150.0,0.0001989,2]
[379794612,1755410273889,150.0,0.00019889,2]
[379794613,1755410353819,150.0,0.00019877,2]
[379794614,1755410378870,161.893108,0.00013699,2]
[379794615,1755410429468,166.462217,0.00019863,2]
[379794616,1755410435184,150.0,0.00019887,2]
[379794617,1755410515609,150.0,0.0001989,2]
[379794623,1755410595365,150.0,0.00019889,2]
[379794625,1755410674838,150.0,0.00019888,2]
[379794672,1755411032868,-1101.76772379,0.00020077,2]
[379794673,1755411032878,-300.0,0.00020174,2]
[379794674,1755411032888,-1200.0,0.00020174,2]
[379794675,1755411032898,-438.0,0.00020175,2]
[379794676,1755411032908,-480.0,0.00020175,2]
[379794677,1755411032917,-868.54,0.00020175,2]
[379794678,1755411032927,-480.0,0.00020176,2]
[379794679,1755411032937,-321.12477465,0.00020176,2]
[379794680,1755411032948,-380.23084571,0.00020176,2]
[379794717,1755411040693,-99.76915429,0.00020176,2]
[379794719,1755411040703,-427.16361366,0.00020176,2]
[379794914,1755411044885,-52.83638634,0.00020176,2]
[379794915,1755411044895,-480.0,0.00020176,2]
[379794916,1755411044904,-480.0,0.00020176,2]
[379794917,1755411044913,-480.0,0.00020176,2]
[379794918,1755411044924,-759.92,0.00020176,2]
[379794919,1755411044938,-480.0,0.00020176,2]
[379794920,1755411044947,-480.0,0.00020176,2]
[379794921,1755411044959,-809.26,0.00020176,2]
[379794922,1755411044969,-480.0,0.00020176,2]
[379794923,1755411044979,-170.7582707,0.00020176,2]
[379794924,1755411044990,-46.53265437,0.00020176,2]
[379794925,1755411044999,-440.08177475,0.00020176,2]
[379795323,1755411200878,10000.0,0.0002,2]
[379795324,1755411207425,10000.0,0.0002,2]
[379795325,1755411213805,810.85731522,0.0002,2]
[379795326,1755411213833,9189.14268478,0.0002,2]
[379795327,1755411222985,10000.0,0.0002,2]
[379795328,1755411230373,5810.85731522,0.0002,2]
[379795329,1755411230395,4189.14268478,0.0002,2]
[379795330,1755411241956,2450.0,0.0002,2]
[379795332,1755411270071,18360.85731522,0.0002,2]
[379795333,1755411270093,25000.0,0.0002,2]
[379795334,1755411270114,25000.0,0.0002,2]
[379795335,1755411270135,25000.0,0.0002,2]
[379795336,1755411270155,25000.0,0.0002,2]
[379795337,1755411270175,25000.0,0.0002,2]
[379795338,1755411270195,25000.0,0.0002,2]
[379795339,1755411270216,25000.0,0.0002,2]
[379795340,1755411270236,25000.0,0.0002,2]
[379795341,1755411270256,25000.0,0.0002,2]
[379795342,1755411270276,25000.0,0.0002,2]
[379795343,1755411270295,25000.0,0.0002,2]
[379795344,1755411270322,50000.0,0.0002,2]
[379795345,1755411271204,-158.46569008,0.0002,2]
[379795346,1755411273443,-165.05500853,0.0002,2]
[379795347,1755411276651,-207.0137164,0.0002,2]
[379795348,1755411279019,-152.701679,0.0002,2]
[379795349,1755411281281,314.12515274,0.000189,2]
[379795350,1755411281354,-298.64208696,0.0002,2]
[379795351,1755411283958,158.46569008,0.000198,2]
[379795352,1755411285319,-203.06113577,0.0001999,2]
[379795353,1755411288224,-187.41557551,0.0001999,2]
[379795354,1755411289993,-151.16580636,0.0001999,2]
[379795355,1755411293006,5000.0,0.000198,2]
[379795356,1755411300911,5000.0,0.000198,2]
[379795357,1755411316929,5000.0,0.000198,2]
[379795358,1755411318805,-272.0,0.00019989,2]
[379795359,1755411318829,-182.62250706,0.00019989,2]
[379795360,1755411320475,-117.37749294,0.00019989,2]
[379795361,1755411320502,-182.62250706,0.00019989,2]
[379795362,1755411322850,-117.37749294,0.00019989,2]
[379795363,1755411322873,-187.03262356,0.00019989,2]
[379795366,1755411325791,-112.96737644,0.00019989,2]
[379795367,1755411325816,-199.76645339,0.00019989,2]
[379795369,1755411330399,-327.36808057,0.00019989,2]
[379795375,1755411332744,-166.22773649,0.00019989,2]
[379795381,1755411333808,500.0,0.00018538,2]
[379795382,1755411335090,-166.78479279,0.00019989,2]
[379795383,1755411337884,-252.2013389,0.00019989,2]
[379795384,1755411341494,155.87508113,0.00019804,2]
[379795390,1755411423800,-236.17095523,0.00019899,2]
[379795391,1755411425146,9027.40915718,0.000198,2]
[379795392,1755411425169,25000.0,0.000198,2]
[379795393,1755411425191,25000.0,0.000198,2]
[379795394,1755411425213,25000.0,0.000198,2]
[379795395,1755411425234,25000.0,0.000198,2]
[379795396,1755411425256,25000.0,0.000198,2]
[379795397,1755411425278,22143.56125103,0.000198,2]
[379795398,1755411425414,-72.35525481,0.00019899,2]
[379795399,1755411425437,-111.13942631,0.00019988,2]
[379795400,1755411429264,-188.86057369,0.00019988,2]
[379795401,1755411440253,2856.43874897,0.000198,2]
[379795402,1755411440277,2143.56125103,0.000198,2]
[379795403,1755411456411,1328.7644471,0.000198,2]
[379795404,1755411476697,369.0287212,0.00019151,2]
[379795405,1755411483854,-163.912698,0.00019988,2]
[379795406,1755411486050,-151.97667363,0.00019988,2]
[379795407,1755411488693,-208.54521185,0.00019988,2]
[379795408,1755411492886,-270.5450808,0.00019988,2]
[379795409,1755411494448,-172.10771669,0.00019988,2]
[379795410,1755411496691,-223.74338969,0.00019988,2]
[379795411,1755411500454,-288.1018512,0.00019988,2]
[379795412,1755411502130,-349.29069034,0.00019988,2]
[379795413,1755411506218,-167.5168823,0.00019988,2]
[379795414,1755411509175,-247.54730916,0.00019988,2]
[379795415,1755411512231,-223.49865614,0.00019988,2]
[379795416,1755411516721,-337.26366115,0.00019988,2]
[379795417,1755411519021,-186.63622741,0.00019988,2]
[379795418,1755411522054,-189.11701146,0.00019988,2]
[379795419,1755411524563,-151.11129436,0.00019988,2]
[379795420,1755411526795,-263.50347645,0.00019988,2]